bitfinex-derivatives/quotes_BTCF0:USTF0_20240907
["timestamp","ask_amount","ask_price","bid_price","bid_amount"]
[1725691461979,0.43789104,54270.0,54269.0,0.33640961]
[1725691465488,0.43789494,54270.0,54269.0,0.33640961]
[1725691466997,0.43789494,54270.0,54269.0,0.33540961]
[1725691467893,0.43789494,54270.0,54269.0,0.33640961]
[1725691468096,0.34574094,54270.0,54269.0,0.33640961]
[1725691468684,0.34574094,54270.0,54269.0,0.40270961]
[1725691469088,0.29044476,54270.0,54269.0,0.40270961]
[1725691469289,0.34574094,54270.0,54269.0,0.40270961]
[1725691469595,0.29044476,54270.0,54269.0,0.40270961]
[1725691469986,0.34574094,54270.0,54269.0,0.40270961]
[1725691470196,0.29044476,54270.0,54269.0,0.40270961]
[1725691470391,0.34574094,54270.0,54269.0,0.40270961]
[1725691470595,0.29044476,54270.0,54269.0,0.40270961]
[1725691471285,0.29044476,54270.0,54269.0,0.51310451]
[1725691471490,0.29044476,54270.0,54269.0,0.40270961]
[1725691471690,0.29044476,54270.0,54269.0,0.51310451]
[1725691472786,0.29044476,54270.0,54269.0,0.40270961]
[1725691473093,0.29044476,54270.0,54269.0,0.51310451]
[1725691473598,0.29044476,54270.0,54269.0,0.40270961]
[1725691474294,0.29044476,54270.0,54269.0,0.51306212]
[1725691476609,0.01286,54270.0,54269.0,0.66574299]
[1725691477102,0.01286,54270.0,54269.0,0.66471732]
[1725691477902,0.01286,54270.0,54269.0,0.66771732]
[1725691479495,0.01286,54270.0,54269.0,0.66571732]
[1725691480599,0.01286,54270.0,54269.0,0.66571774]
[1725691480805,0.01286,54270.0,54269.0,0.66471774]
[1725691482196,0.01286,54270.0,54269.0,0.49385192]
[1725691482704,0.01286,54270.0,54269.0,0.49585192]
[1725691483296,0.01286,54270.0,54269.0,0.49385192]
[1725691484205,0.01286,54270.0,54269.0,0.39385192]
[1725691484501,0.01286,54270.0,54269.0,0.49385192]
[1725691485909,0.01286,54270.0,54269.0,0.60404088]
[1725691486605,0.01286,54270.0,54269.0,0.49385192]
[1725691488809,0.01286,54270.0,54269.0,0.35347269]
[1725691489025,0.01286,54270.0,54269.0,0.49385229]
[1725691489609,0.01286,54270.0,54269.0,0.49485229]
[1725691490397,0.01286,54270.0,54269.0,0.49385229]
[1725691490903,0.092144,54276.0,54275.0,0.092146]
[1725691491110,0.092144,54276.0,54275.0,0.28683048]
[1725691491308,0.38043583,54276.0,54275.0,0.28683048]
[1725691493812,0.38043583,54276.0,54275.0,0.28783048]
[1725691494216,0.28829183,54276.0,54275.0,0.28783048]
[1725691494413,0.28829183,54276.0,54275.0,0.42821006]
[1725691495403,0.28829183,54276.0,54275.0,0.43271076]
[1725691497202,0.28829183,54276.0,54275.0,0.43271]
[1725691498308,0.28829183,54276.0,54275.0,0.34088621]
[1725691505509,0.34358801,54276.0,54275.0,0.34088621]
[1725691508615,0.28829183,54276.0,54275.0,0.45107476]
[1725691510614,0.01286,54276.0,54275.0,0.45107476]
[1725691510827,0.01286,54276.0,54275.0,0.34088621]
[1725691511832,0.01286,54276.0,54275.0,0.45126722]
[1725691512023,0.01286,54276.0,54275.0,0.34088621]
[1725691513231,0.01286,54276.0,54275.0,0.51174517]
[1725691513405,0.01286,54276.0,54275.0,0.51174424]
[1725691513610,0.05529618,54285.0,54275.0,1.77121594]
[1725691513815,0.05529618,54285.0,54284.0,0.192131]
[1725691514011,0.29090522,54285.0,54284.0,0.23250982]
[1725691514212,0.01286,54285.0,54284.0,0.23537051]
[1725691514419,0.01286,54285.0,54284.0,0.33537051]
[1725691514618,0.01286,54285.0,54284.0,0.33534688]
[1725691514919,0.104989,54285.0,54284.0,0.33534688]
[1725691515115,0.104989,54285.0,54284.0,0.23534688]
[1725691515315,0.104989,54285.0,54284.0,0.42713102]
[1725691516325,0.104989,54285.0,54284.0,0.28677583]
[1725691517225,0.104989,54285.0,54284.0,0.19599169]
[1725691532238,0.104989,54285.0,54284.0,0.19499169]
[1725691532534,0.104989,54285.0,54284.0,0.19599169]
[1725691536035,0.05891,54285.0,54284.0,0.28777583]
[1725691536341,0.092124,54288.0,54287.0,0.079276]
[1725691536738,0.3803676,54288.0,54287.0,0.079276]
[1725691537128,0.3803676,54288.0,54287.0,0.08213669]
[1725691538232,0.2882436,54288.0,54287.0,0.19257079]
[1725691538438,0.2882436,54288.0,54287.0,0.18313669]
[1725691539439,0.2882436,54288.0,54287.0,0.27485036]
[1725691540341,0.2882436,54288.0,54287.0,0.41520289]
[1725691540945,0.2912436,54288.0,54287.0,0.41620289]
[1725691541238,0.2912436,54288.0,54287.0,0.32448922]
[1725691542037,0.2912436,54288.0,54287.0,0.22448922]
[1725691542238,0.2912436,54288.0,54287.0,0.32448922]
[1725691543237,0.2912436,54288.0,54287.0,0.33473585]
[1725691543428,0.2912436,54288.0,54287.0,0.22448922]
[1725691549845,0.2912436,54288.0,54287.0,0.22448595]
[1725691555734,0.3833676,54288.0,54287.0,0.23703901]
[1725691555940,0.43866378,54288.0,54287.0,0.23703901]
[1725691556147,0.43866378,54288.0,54287.0,0.00486069]
[1725691557350,0.43866378,54288.0,54287.0,0.09668975]
[1725691557545,0.43866378,54288.0,54287.0,0.00486069]
[1725691557846,0.43866378,54288.0,54287.0,0.09668975]
[1725691558839,0.3833676,54288.0,54287.0,0.23704645]
[1725691560149,0.3833676,54288.0,54287.0,0.09668975]
[1725691560353,0.3833676,54288.0,54287.0,0.23704648]
[1725691560549,0.3833676,54288.0,54287.0,0.09668975]
[1725691560940,0.00196,54299.0,54287.0,1.56003371]
[1725691561144,0.07372218,54301.0,54297.0,0.19178863]
[1725691561347,0.092099,54303.0,54300.0,0.092104]
[1725691561348,0.0921,54302.0,54300.0,0.092104]
[1725691561546,0.05520647,54301.0,54300.0,0.092104]
[1725691561747,0.37997151,54302.0,54300.0,0.092104]
[1725691561949,0.27502151,54301.0,54300.0,0.092104]
[1725691562148,0.28787151,54301.0,54300.0,0.092104]
[1725691562346,0.28787151,54301.0,54300.0,0.09496469]
[1725691562548,0.01285,54301.0,54300.0,0.09496469]
[1725691562749,0.38899737,54301.0,54300.0,0.07622043]
[1725691563053,0.48109937,54301.0,54300.0,0.07722043]
[1725691563358,0.53089937,54301.0,54300.0,0.00386069]
[1725691563550,0.53089937,54301.0,54300.0,0.05989956]
[1725691564142,0.28899737,54301.0,54300.0,0.27032443]
[1725691564351,0.28899737,54301.0,54300.0,0.09696469]
[1725691564551,0.28899737,54301.0,54300.0,0.17032443]
[1725691564754,0.28899737,54301.0,54300.0,1.06051828]
[1725691564942,0.092085,54311.0,54300.0,0.35514236]
[1725691565147,0.17359026,54314.0,54309.0,0.07331291]
[1725691565148,0.092088,54310.0,54309.0,0.07331291]
[1725691565462,0.38124973,54310.0,54309.0,0.07610695]
[1725691565764,1.349426,54310.0,54309.0,0.00286069]
[1725691565954,1.349426,54310.0,54300.0,0.002]
[1725691565955,1.53364973,54310.0,54302.0,0.05494565]
[1725691566256,0.0921,54302.0,54300.0,0.05694565]
[1725691566457,0.0931,54301.0,54300.0,0.05694565]
[1725691566666,0.36856765,54301.0,54300.0,0.002]
[1725691566958,0.37307765,54301.0,54300.0,0.05596547]
[1725691567255,0.37207765,54301.0,54300.0,0.05496547]
[1725691567559,0.37207765,54301.0,54300.0,0.092104]
[1725691568855,0.37307765,54301.0,54300.0,0.093104]
[1725691569746,0.37307765,54301.0,54300.0,0.094104]
[1725691569747,0.32617765,54301.0,54300.0,0.094104]
[1725691571346,0.32617765,54301.0,54300.0,0.16735026]
[1725691571550,0.33351765,54301.0,54300.0,0.16735026]
[1725691572354,0.29031765,54301.0,54300.0,0.16735026]
[1725691572954,0.29031765,54301.0,54300.0,0.094104]
[1725691573158,0.29031765,54301.0,54300.0,0.16735026]
[1725691573560,0.29031765,54301.0,54300.0,0.094104]
[1725691574259,0.29031765,54301.0,54300.0,0.16735026]
[1725691574465,0.29031765,54301.0,54300.0,0.094104]
[1725691578469,0.38241965,54301.0,54300.0,0.002]
[1725691578660,0.38241965,54301.0,54300.0,0.05690009]
[1725691578855,0.38241965,54301.0,54300.0,0.002]
[1725691579063,0.57452165,54301.0,54300.0,0.05690086]
[1725691579262,0.57352165,54301.0,54300.0,0.05590086]
[1725691579463,0.61972165,54301.0,54300.0,0.002]
[1725691579870,0.61872165,54301.0,54300.0,0.001]
[1725691580063,0.092105,54299.0,54298.0,0.05490086]
[1725691580364,0.36702326,54299.0,54298.0,0.05490086]
[1725691580762,0.37987326,54299.0,54298.0,0.05490086]
[1725691581473,0.37887326,54299.0,54298.0,0.05490086]
[1725691581658,0.37787326,54299.0,54298.0,0.05490086]
[1725691581975,0.37887326,54299.0,54298.0,0.05490086]
[1725691582571,0.38087326,54299.0,54298.0,0.05592845]
[1725691583161,0.37887326,54299.0,54298.0,0.05492845]
[1725691583368,0.091109,54297.0,54296.0,0.07324626]
[1725691583773,0.36816484,54297.0,54296.0,0.16535626]
[1725691583957,0.38101484,54297.0,54296.0,0.16535626]
[1725691584268,0.38001484,54297.0,54296.0,0.16535626]
[1725691584769,0.38101484,54297.0,54296.0,0.16535626]
[1725691585469,0.29190584,54297.0,54296.0,0.16535626]
[1725691585776,0.29590584,54297.0,54296.0,0.16637961]
[1725691585967,0.29590584,54297.0,54296.0,0.16637957]
[1725691586158,0.24983623,54297.0,54296.0,0.09311]
[1725691586364,0.01985,54297.0,54296.0,0.28153579]
[1725691586875,0.01685,54297.0,54296.0,0.28153579]
[1725691587072,0.01885,54297.0,54296.0,0.28153579]
[1725691588060,0.01685,54297.0,54296.0,0.32823579]
[1725691588773,0.01685,54297.0,54296.0,0.23343579]
[1725691589072,0.2943949,54297.0,54296.0,0.09311]
[1725691589572,0.3865039,54297.0,54296.0,0.001]
[1725691590877,0.3895039,54297.0,54296.0,0.002]
[1725691591575,0.3895039,54297.0,54296.0,0.001]
[1725691591576,0.3855039,54297.0,54296.0,0.001]
[1725691591776,0.3895039,54297.0,54296.0,0.002]
[1725691593066,0.3865039,54297.0,54296.0,0.001]
[1725691593270,0.3895039,54297.0,54296.0,0.001]
[1725691593676,0.3865039,54297.0,54296.0,0.001]
[1725691593882,0.3895039,54297.0,54296.0,0.002]
[1725691594176,0.3895039,54297.0,54296.0,0.05702925]
[1725691594484,0.3895039,54297.0,54296.0,0.002]
[1725691595478,0.3895039,54297.0,54296.0,0.05702925]
[1725691596474,0.3895039,54297.0,54296.0,0.002]
[1725691596668,0.3895039,54297.0,54296.0,0.05702925]
[1725691597373,0.3895039,54297.0,54296.0,0.002]
[1725691603382,0.3895039,54297.0,54296.0,0.001]
[1725691603985,0.3865039,54297.0,54296.0,0.001]
[1725691604181,0.3855039,54297.0,54296.0,0.001]
[1725691604388,0.3955039,54297.0,54296.0,0.002]
[1725691604987,0.3955039,54297.0,54296.0,0.07536514]
[1725691605184,0.3855039,54297.0,54296.0,0.07436514]
[1725691605389,0.3965039,54297.0,54296.0,0.07536514]
[1725691606290,0.3935039,54297.0,54296.0,0.07436514]
[1725691606493,0.3965039,54297.0,54296.0,0.07436514]
[1725691606694,0.3855039,54297.0,54296.0,0.07336514]
[1725691606896,0.3915039,54297.0,54296.0,0.07436514]
[1725691607095,0.3945039,54297.0,54296.0,0.07536514]
[1725691607498,0.3855039,54297.0,54296.0,0.07436514]
[1725691607802,0.3945039,54297.0,54296.0,0.07536514]
[1725691608193,0.3945039,54297.0,54296.0,0.002]
[1725691609788,0.3945039,54297.0,54289.0,0.2613571]
[1725691609789,0.092122,54289.0,54284.0,0.09165246]
[1725691610086,0.36818046,54288.0,54282.0,0.09165246]
[1725691610287,0.27605646,54288.0,54285.0,0.192128]
[1725691610496,0.28925646,54288.0,54286.0,0.0462]
[1725691610692,0.01285,54288.0,54286.0,0.0462]
[1725691611094,0.27665285,54287.0,54286.0,0.0462]
[1725691611498,0.28950285,54287.0,54286.0,0.0462]
[1725691611794,0.01285,54287.0,54286.0,0.0462]
[1725691612199,0.28985266,54287.0,54286.0,0.0462]
[1725691612887,0.28985266,54287.0,54286.0,0.0995]
[1725691613893,0.28985266,54287.0,54286.0,1.344267]
[1725691614596,0.28985266,54287.0,54286.0,0.744267]
[1725691616495,0.38197866,54287.0,54286.0,0.191627]
[1725691617805,0.28985266,54287.0,54286.0,0.191627]
[1725691618002,0.28985266,54287.0,54286.0,0.744267]
[1725691618195,0.28985266,54287.0,54286.0,0.97627146]
[1725691618397,0.28985266,54287.0,54286.0,0.97626902]
[1725691618801,0.38197866,54287.0,54286.0,0.97626902]
[1725691619296,0.38197866,54287.0,54286.0,0.88461656]
[1725691619809,0.09211,54297.0,54294.0,0.092114]
[1725691619996,0.09211,54297.0,54295.0,0.138012]
[1725691620198,0.27702935,54296.0,54295.0,0.138012]
[1725691620909,0.28987935,54296.0,54295.0,0.138012]
[1725691622607,0.29987935,54296.0,54295.0,0.139012]
[1725691622810,0.30387935,54296.0,54295.0,0.139012]
[1725691623402,0.30187935,54296.0,54295.0,0.139012]
[1725691624317,0.30187935,54296.0,54295.0,0.184512]
[1725691626608,0.30187935,54296.0,54295.0,0.284512]
[1725691626802,0.30187935,54296.0,54295.0,0.239012]
[1725691627007,0.30187935,54296.0,54295.0,0.139012]
[1725691627399,0.29987935,54296.0,54295.0,0.138012]
[1725691627614,0.29687935,54296.0,54295.0,0.138012]
[1725691631621,0.38898935,54296.0,54295.0,0.138012]
[1725691631807,0.38898935,54296.0,54295.0,0.092112]
[1725691638810,0.29687935,54296.0,54293.0,0.09173816]
[1725691639011,0.092114,54294.0,54293.0,0.09173816]
[1725691639317,0.092114,54294.0,54293.0,0.23206625]
[1725691639318,0.04604438,54294.0,54293.0,0.23206625]
[1725691639818,0.05889438,54294.0,54293.0,0.09173816]
[1725691640318,0.05889438,54294.0,54293.0,0.23206722]
[1725691640522,0.4348356,54294.0,54289.0,0.09173816]
[1725691640707,0.092119,54291.0,54289.0,0.05497959]
[1725691640912,0.237821,54290.0,54289.0,0.05497923]
[1725691641211,0.46266222,54290.0,54289.0,0.05497923]
[1725691641406,0.47551222,54290.0,54289.0,0.05497923]
[1725691642115,0.092124,54288.0,54287.0,0.07327974]
[1725691642523,0.089129,54285.0,54284.0,0.09173816]
[1725691642722,0.088129,54285.0,54284.0,0.23209486]
[1725691642914,0.36304672,54285.0,54284.0,0.23209486]
[1725691643114,0.37589672,54285.0,54284.0,0.23209486]
[1725691643719,0.37589672,54285.0,54284.0,0.009]
[1725691643919,0.28776772,54285.0,54284.0,0.109]
[1725691644217,0.32846,54299.0,54284.0,1.40199727]
[1725691644420,0.16571498,54304.0,54298.0,0.07327026]
[1725691644625,0.17041865,54304.0,54302.0,0.04210334]
[1725691644821,0.27609119,54303.0,54302.0,0.04210334]
[1725691645009,0.28894119,54303.0,54302.0,0.04210334]
[1725691645322,0.28894119,54303.0,54300.0,0.07327026]
[1725691645713,0.28894119,54303.0,54302.0,0.001]
[1725691646121,0.38103919,54303.0,54302.0,0.001]
[1725691646417,0.38803919,54303.0,54302.0,0.001]
[1725691646613,0.39803919,54303.0,54302.0,0.001]
[1725691647526,0.39803919,54303.0,54302.0,0.002]
[1725691650327,0.49803919,54303.0,54302.0,0.002]
[1725691652050,0.30594119,54303.0,54302.0,0.0941]
[1725691654031,0.30594119,54303.0,54302.0,0.16737327]
[1725691654932,0.30594119,54303.0,54302.0,0.0941]
[1725691655121,0.30594119,54303.0,54302.0,0.16736625]
[1725691655733,0.30594119,54303.0,54302.0,0.0941]
[1725691656230,0.30594119,54303.0,54302.0,0.16736026]
[1725691656619,0.30594119,54303.0,54302.0,0.0941]
[1725691656830,0.30594119,54303.0,54302.0,0.16736273]
[1725691657928,0.39803919,54303.0,54302.0,0.16736273]
[1725691660232,0.39803919,54303.0,54302.0,0.0941]
[1725691664037,0.39803919,54303.0,54302.0,0.002]
[1725691665123,0.39803919,54303.0,54302.0,0.07526273]
[1725691665836,0.39703919,54303.0,54302.0,0.07526273]
[1725691666133,0.39603919,54303.0,54302.0,0.07526273]
[1725691666525,0.39603919,54303.0,54302.0,0.07426273]
[1725691666526,0.39003919,54303.0,54302.0,0.07426273]
[1725691666836,0.39603919,54303.0,54302.0,0.07526273]
[1725691667742,0.39503919,54303.0,54302.0,0.07526273]
[1725691668636,0.39503919,54303.0,54302.0,0.002]
[1725691669037,0.39503919,54303.0,54302.0,0.07524756]
[1725691669340,0.02685,54303.0,54302.0,0.33441361]
[1725691669526,0.02685,54303.0,54302.0,1.48689361]
[1725691669727,0.02685,54303.0,54302.0,1.54513714]
[1725691670534,0.02685,54303.0,54302.0,0.94513714]
[1725691670931,0.02685,54303.0,54302.0,0.80482353]
[1725691671132,0.02685,54303.0,54302.0,0.94512162]
[1725691671933,0.02685,54303.0,54302.0,0.84512162]
[1725691672130,0.02685,54303.0,54302.0,0.94512162]
[1725691672336,0.02685,54303.0,54302.0,0.94977977]
[1725691673135,0.02685,54303.0,54302.0,0.94053624]
[1725691673643,0.02685,54303.0,54302.0,0.94968351]
[1725691674556,0.02685,54303.0,54302.0,0.39720351]
[1725691675539,0.02685,54303.0,54302.0,0.28805624]
[1725691675738,0.02685,54303.0,54302.0,0.38805624]
[1725691676043,0.02685,54303.0,54302.0,0.38805777]
[1725691678342,0.02685,54303.0,54302.0,1.65044317]
[1725691678542,0.02685,54303.0,54302.0,1.74254317]
[1725691678740,0.092082,54313.0,54312.0,0.092083]
[1725691678942,0.092082,54313.0,54312.0,0.16529727]
[1725691679143,0.38221549,54313.0,54312.0,0.16529727]
[1725691680752,0.38321549,54313.0,54312.0,0.16629727]
[1725691681246,0.38321549,54313.0,54312.0,0.16729727]
[1725691682038,0.29113349,54313.0,54312.0,0.094083]
[1725691682443,0.29113349,54313.0,54312.0,0.16727819]
[1725691687448,0.29113349,54313.0,54312.0,0.094083]
[1725691687643,0.24507886,54313.0,54312.0,0.094083]
[1725691690147,0.01385,54313.0,54312.0,0.094083]
[1725691695952,0.01385,54313.0,54312.0,0.32587925]
[1725691697066,0.01385,54313.0,54312.0,0.23436142]
[1725691698046,0.01385,54313.0,54312.0,0.23336142]
[1725691698255,0.01385,54313.0,54312.0,0.78472142]
[1725691698444,0.01385,54313.0,54312.0,0.78672142]
[1725691699546,0.01385,54313.0,54312.0,0.23436142]
[1725691699946,0.2911366,54313.0,54312.0,0.18563409]
[1725691700253,0.2911366,54313.0,54312.0,0.094083]
[1725691700454,0.3382366,54313.0,54312.0,0.094083]
[1725691701951,0.3382366,54313.0,54312.0,0.092083]
[1725691702148,0.3382366,54313.0,54312.0,0.18363409]
[1725691702347,0.2911366,54313.0,54312.0,0.33236474]
[1725691703556,0.2901366,54313.0,54312.0,0.33236474]
[1725691703754,0.2911366,54313.0,54312.0,0.33236474]
[1725691704568,0.2911366,54313.0,54312.0,0.33236065]
[1725691705550,0.2911366,54313.0,54312.0,0.33436065]
[1725691706952,0.2911366,54313.0,54312.0,0.38276065]
[1725691707260,0.2911366,54313.0,54312.0,0.49258205]
[1725691707652,0.2901366,54313.0,54312.0,0.49258205]
[1725691707852,0.2911366,54313.0,54312.0,0.49258205]
[1725691708255,0.01385,54313.0,54312.0,0.49258205]
[1725691709751,0.01385,54313.0,54312.0,0.38276065]
[1725691710057,0.01285,54313.0,54312.0,0.38276065]
[1725691710257,0.01385,54313.0,54312.0,0.38276065]
[1725691710654,0.01385,54313.0,54312.0,0.38176065]
[1725691710855,0.01385,54313.0,54312.0,0.49158205]
[1725691711556,0.01385,54313.0,54312.0,0.38176065]
[1725691711761,0.01385,54313.0,54312.0,0.49158205]
[1725691714366,0.01385,54313.0,54312.0,0.49158013]
[1725691715059,0.01385,54313.0,54312.0,0.49058013]
[1725691715764,0.01385,54313.0,54312.0,0.38075873]
[1725691716664,0.01385,54313.0,54312.0,0.38175873]
[1725691718057,0.01385,54313.0,54312.0,0.93411873]
[1725691718265,0.01385,54313.0,54312.0,1.19693153]
[1725691720463,0.01385,54313.0,54312.0,1.19593153]
[1725691720672,0.01385,54313.0,54312.0,1.19793153]
[1725691720972,0.141469,54321.0,54320.0,0.09207]
[1725691721166,0.141469,54321.0,54320.0,0.4239329]
[1725691721367,0.42888312,54321.0,54320.0,0.4239329]
[1725691722064,0.42888312,54321.0,54320.0,0.28365717]
[1725691723171,0.42888312,54321.0,54320.0,0.28565717]
[1725691723758,0.33681412,54321.0,54320.0,0.28565717]
[1725691726676,0.33681412,54321.0,54320.0,0.29035822]
[1725691729262,0.33681412,54321.0,54320.0,0.19877105]
[1725691730573,0.33681412,54321.0,54320.0,0.29035822]
[1725691731461,0.33681412,54321.0,54320.0,0.4306247]
[1725691735468,0.33681412,54321.0,54320.0,0.33903753]
[1725691737274,0.33681412,54321.0,54320.0,0.33433648]
[1725691737577,0.33681412,54321.0,54320.0,0.42597622]
[1725691738583,0.42888212,54321.0,54320.0,0.14226648]
[1725691738780,0.42888212,54321.0,54320.0,0.002]
[1725691740185,0.55228,54320.0,54311.0,0.1099046]
[1725691740380,0.55228,54320.0,54307.0,0.1099046]
[1725691740381,0.09209,54308.0,54307.0,0.1099046]
[1725691740584,0.17365122,54308.0,54304.0,0.09171901]
[1725691740890,0.092097,54304.0,54302.0,0.09171901]
[1725691741088,0.14733935,54303.0,54302.0,0.09171901]
[1725691741386,0.4223165,54303.0,54302.0,0.23203415]
[1725691741584,0.4223165,54303.0,54299.0,0.18382401]
[1725691741585,0.39054515,54303.0,54299.0,0.18382401]
[1725691741891,0.1,54302.0,54299.0,0.18382401]
[1725691742093,0.11949,54302.0,54299.0,0.18382401]
[1725691742297,0.11949,54302.0,54299.0,0.092105]
[1725691742298,0.11285,54302.0,54299.0,0.092105]
[1725691742987,0.01285,54302.0,54299.0,0.092105]
[1725691743291,0.00585,54302.0,54301.0,0.07321456]
[1725691743682,0.00685,54302.0,54301.0,0.07321456]
[1725691744197,0.00785,54302.0,54301.0,0.07321456]
[1725691744392,0.00785,54302.0,54301.0,0.092102]
[1725691744586,0.0497,54307.0,54306.0,0.092093]
[1725691744787,0.3718,54315.0,54305.0,0.1]
[1725691744788,0.37632623,54315.0,54305.0,0.1]
[1725691745091,0.01285,54315.0,54314.0,0.1]
[1725691745286,0.01285,54315.0,54310.0,0.17314452]
[1725691745486,0.27646671,54314.0,54313.0,0.1]
[1725691745692,0.28931671,54314.0,54313.0,0.192081]
[1725691745891,0.01285,54314.0,54313.0,0.192081]
[1725691746087,0.28736001,54314.0,54313.0,0.192081]
[1725691747390,0.29236001,54314.0,54313.0,0.192081]
[1725691747794,0.29436001,54314.0,54313.0,0.192081]
[1725691750399,0.29436001,54314.0,54311.0,0.1]
[1725691750590,0.29436001,54314.0,54311.0,0.192085]
[1725691751896,0.29336001,54314.0,54311.0,0.192085]
[1725691752702,0.38444001,54314.0,54311.0,0.192085]
[1725691754503,0.092083,54313.0,54311.0,0.192085]
[1725691755005,0.27639994,54312.0,54311.0,0.192085]
[1725691755402,0.28924994,54312.0,54311.0,0.192085]
[1725691757304,0.29324994,54312.0,54311.0,0.192085]
[1725691757608,0.29324994,54312.0,54311.0,0.092085]
[1725691759911,0.29324994,54312.0,54311.0,0.2652221]
[1725691760397,0.29324994,54312.0,54311.0,0.192085]
[1725691760596,0.29324994,54312.0,54311.0,0.2652221]
[1725691762505,0.29324994,54312.0,54311.0,0.192085]
[1725691764600,0.29324994,54312.0,54308.0,0.09171901]
[1725691764601,0.092085,54311.0,54307.0,0.07320467]
[1725691764815,0.09209,54308.0,54307.0,0.05491011]
[1725691765107,0.092095,54305.0,54303.0,0.07320467]
[1725691765312,0.092095,54305.0,54304.0,0.07320467]
[1725691765711,0.099945,54305.0,54303.0,0.07320467]
[1725691765916,0.092097,54304.0,54300.0,0.10470466]
[1725691766111,0.092097,54304.0,54302.0,0.07321849]
[1725691766312,0.104947,54304.0,54303.0,0.07321849]
[1725691766512,0.100947,54304.0,54300.0,0.19680766]
[1725691766807,0.100947,54304.0,54303.0,0.0732176]
[1725691767011,0.100947,54304.0,54302.0,0.0732176]
[1725691767211,0.100947,54304.0,54303.0,0.0822176]
[1725691767516,0.100947,54304.0,54303.0,0.08222139]
[1725691767707,0.100947,54304.0,54303.0,0.08222113]
[1725691767906,0.101947,54304.0,54302.0,0.07322113]
[1725691768109,0.101947,54304.0,54303.0,0.07322113]
[1725691768308,0.102947,54304.0,54302.0,0.07922113]
[1725691768613,0.102947,54304.0,54303.0,0.08222113]
[1725691769206,0.101947,54304.0,54303.0,0.009]
[1725691769410,0.101947,54304.0,54303.0,0.014]
[1725691769712,0.101947,54304.0,54303.0,0.08722113]
[1725691770303,0.101947,54304.0,54303.0,0.014]
[1725691773315,1.12170427,54304.0,54303.0,0.014]
[1725691774517,1.17683276,54304.0,54303.0,0.014]
[1725691774820,0.091102,54301.0,54300.0,0.05493593]
[1725691775321,0.38164449,54301.0,54300.0,0.05493593]
[1725691776131,0.38464449,54301.0,54300.0,0.05493593]
[1725691776321,0.38464449,54301.0,54300.0,0.05593593]
[1725691776913,0.38464449,54301.0,54300.0,0.001]
[1725691778121,0.29354249,54301.0,54298.0,0.06722113]
[1725691779112,0.092105,54299.0,54298.0,0.06722113]
[1725691779318,0.104955,54299.0,54298.0,0.06722113]
[1725691780827,0.105955,54299.0,54298.0,0.06722113]
[1725691782228,0.105955,54299.0,54296.0,0.19211]
[1725691783336,0.105955,54299.0,54296.0,0.1]
[1725691784020,0.104955,54299.0,54296.0,0.101]
[1725691784919,0.01285,54299.0,54296.0,0.101]
[1725691785132,0.092107,54298.0,54296.0,0.101]
[1725691785332,0.104957,54298.0,54296.0,0.101]
[1725691786027,0.092109,54297.0,54296.0,0.101]
[1725691786233,0.104959,54297.0,54296.0,0.101]
[1725691786821,0.104959,54297.0,54296.0,0.1]
[1725691787020,0.104959,54297.0,54296.0,0.101]
[1725691787225,0.104959,54297.0,54296.0,0.001]
[1725691787729,0.09111,54296.0,54295.0,0.05125585]
[1725691787927,0.10396,54296.0,54295.0,0.0466]
[1725691788129,0.01285,54296.0,54292.0,0.1]
[1725691788328,0.01285,54296.0,54290.0,0.18383801]
[1725691788329,0.01285,54296.0,54291.0,0.1]
[1725691788920,0.092116,54293.0,54291.0,0.1]
[1725691789130,0.104966,54293.0,54291.0,0.1]
[1725691789323,0.104966,54293.0,54291.0,0.19171901]
[1725691789532,0.05889461,54293.0,54291.0,0.19171901]
[1725691789725,0.092117,54292.0,54291.0,0.1]
[1725691790027,0.092119,54291.0,54290.0,0.00463269]
[1725691790230,0.092121,54290.0,54289.0,0.09171901]
[1725691790431,0.092124,54288.0,54287.0,0.09171901]
[1725691790730,0.092124,54288.0,54286.0,0.1]
[1725691790731,0.092126,54287.0,54286.0,0.19171901]
[1725691791539,0.102976,54287.0,54286.0,0.1]
[1725691792333,0.103976,54287.0,54286.0,0.104]
[1725691793533,0.103976,54287.0,54286.0,0.004]
[1725691793830,0.47919995,54287.0,54286.0,0.004]
[1725691795238,0.57132595,54287.0,54286.0,0.004]
[1725691795539,0.61922595,54287.0,54286.0,0.05898217]
[1725691795737,0.61922595,54287.0,54286.0,0.004]
[1725691797728,0.092129,54285.0,54284.0,0.05498217]
[1725691797929,0.104979,54285.0,54284.0,0.05498217]
[1725691798123,0.38182446,54285.0,54284.0,0.05498217]
[1725691800033,0.38182446,54285.0,54284.0,0.05598217]
[1725691800534,1.62659346,54285.0,54284.0,0.05598217]
[1725691800841,1.62659346,54285.0,54284.0,0.001]
[1725691803432,1.62659346,54285.0,54281.0,0.05498217]
[1725691803433,0.184268,54282.0,54281.0,0.05498217]
[1725691803639,0.183268,54282.0,54281.0,0.05498217]
[1725691803832,0.092136,54281.0,54280.0,0.05498217]
[1725691804135,0.36976309,54281.0,54280.0,0.05498217]
[1725691804440,0.09214,54279.0,54275.0,0.09664829]
[1725691804646,0.092141,54278.0,54276.0,0.1]
[1725691805229,0.104991,54278.0,54276.0,0.1]
[1725691805430,0.092143,54277.0,54276.0,0.1]
[1725691805627,0.104993,54277.0,54276.0,0.1]
[1725691807553,0.105993,54277.0,54276.0,0.192144]
[1725691814548,0.105993,54277.0,54276.0,0.28386301]
[1725691815736,0.105993,54277.0,54276.0,0.42423218]
[1725691816543,0.105993,54277.0,54276.0,0.33251317]
[1725691817549,0.105993,54277.0,54276.0,0.14036917]
[1725691821040,0.105993,54277.0,54276.0,0.23251317]
[1725691821546,0.105993,54277.0,54276.0,0.44241777]
[1725691821852,0.105993,54277.0,54276.0,0.33251317]
[1725691822238,0.105993,54277.0,54276.0,0.44276355]
[1725691822443,0.105993,54277.0,54276.0,0.33251317]
[1725691823445,0.105993,54277.0,54276.0,0.50336633]
[1725691824254,0.105993,54277.0,54276.0,0.14036917]
[1725691825853,0.105993,54277.0,54276.0,0.23251317]
[1725691826249,0.105993,54277.0,54276.0,0.23251612]
[1725691828559,0.105993,54277.0,54276.0,0.34287448]
[1725691831350,0.105993,54277.0,54276.0,0.34287157]
[1725691832351,0.105993,54277.0,54276.0,0.23251321]
[1725691833550,0.105993,54277.0,54276.0,0.40336643]